[Event "10th Sharjah Cup Women 2020"]
[Site "Sharjah"]
[Date "2020.01.05"]
[Round "2.6"]
[White "Al Maamari, Wafia Darwish"]
[Black "Zimina, Olga"]
[Result "0-1"]
[ECO "C00"]
[WhiteElo "1866"]
[BlackElo "2367"]
[Annotator "ChessBase"]
[PlyCount "86"]
[EventDate "2020.01.04"]
[EventType "swiss"]
[EventCountry "UAE"]
[SourceTitle "playchess.com"]
[Source "ChessBase"]
[SourceQuality "1"]
[TimeControl "5400+30"]

1. e4 {[%emt 0:00:00]} e6 {[%emt 0:00:00]} 2. d4 {[%emt 0:00:00]} d5 {[%emt 0:00:00]} 3. Bd3 {[%emt 0:00:55]} dxe4 {[%emt 0:00:59]} 4. Bxe4 {[%emt 0:00:07]} Nf6 {[%emt 0:00:12]} 5. Bf3 {[%emt 0:00:28]} c5 {[%emt 0:00:27]} 6. dxc5 {[%emt 0:02:41]} Qxd1+ {[%emt 0:00:11]} 7. Bxd1 {[%emt 0:00:15]} Bxc5 {[%emt 0:00:07]} 8. Nc3 {[%emt 0:01:04]} Nc6 {[%emt 0:01:25]} 9. Nf3 {[%emt 0:01:36]} b6 {[%emt 0:05:29]} 10. a3 {[%emt 0:07:23]} Bb7 {[%emt 0:00:35]} 11. b4 {[%emt 0:01:04]} Be7 {[%emt 0:00:58]} 12. O-O {[%emt 0:07:44]} O-O {[%emt 0:01:28]} 13. Bb2 {[%emt 0:01:06]} Rfd8 {[%emt 0:02:34]} 14. Be2 {[%emt 0:00:56]} a5 {[%emt 0:01:17]} 15. b5 {[%emt 0:02:52]} Nd4 {[%emt 0:00:57]} 16. Nxd4 {[%emt 0:01:03]} Rxd4 {[%emt 0:00:02]} 17. Rad1 {[%emt 0:01:04]} Rxd1 {[%emt 0:05:03]} 18. Rxd1 {[%emt 0:00:07]} Rc8 {[%emt 0:00:16]} 19. Bd3 {[%emt 0:04:00]} Bxa3 {[%emt 0:03:48]} 20. Bxa3 {[%emt 0:02:29]} Rxc3 {[%emt 0:00:06]} 21. Bb2 {[%emt 0:03:42]} Rc8 {[%emt 0:02:44]} 22. Bd4 {[%emt 0:04:34]} Nd7 {[%emt 0:02:32]} 23. Be3 {[%emt 0:02:34]} Rc7 {[%emt 0:05:30]} 24. Bf1 {[%emt 0:03:24]} Kf8 {[%emt 0:00:18]} 25. c4 {[%emt 0:01:57]} Ke7 {[%emt 0:00:20]} 26. f3 {[%emt 0:00:38]} Nc5 {[%emt 0:00:49]} 27. Kf2 {[%emt 0:00:54]} f6 {[%emt 0:07:10]} 28. Bd3 {[%emt 0:03:20]} Nxd3+ {[%emt 0:04:50]} 29. Rxd3 {[%emt 0:00:09]} Rxc4 {[%emt 0:00:04]} 30. Bxb6 {[%emt 0:00:14]} a4 {[%emt 0:00:08]} 31. Bd8+ {[%emt 0:02:14]} Ke8 {[%emt 0:01:12]} 32. b6 {[%emt 0:00:14]} a3 {[%emt 0:03:50]} 33. Bc7 {[%emt 0:00:40]} Ra4 {[%emt 0:01:36]} 34. Rd1 {[%emt 0:00:33]} a2 {[%emt 0:00:16]} 35. Ra1 {[%emt 0:00:05]} Bd5 {[%emt 0:00:32]} 36. Bd6 {[%emt 0:04:02]} Ra5 {[%emt 0:02:18]} 37. Bb4 {[%emt 0:01:22]} Rb5 {[%emt 0:00:06]} 38. Bc3 {[%emt 0:00:07]} Rxb6 {[%emt 0:01:05]} 39. Ke3 {[%emt 0:00:38]} Kd7 {[%emt 0:00:58]} 40. Kd4 {[%emt 0:00:15]} Rb1 {[%emt 0:00:34]} 41. h3 {[%emt 0:00:20]} Kc6 {[%emt 0:00:08]} 42. Kd3 {[%emt 0:00:14]} e5 {[%emt 0:00:20]} 43. Kc2 {[%emt 0:00:19]} Bb3+ {[%emt 0:00:16]} 0-1

[Event "10th Sharjah Cup Women 2020"]
[Site "Sharjah"]
[Date "2020.01.05"]
[Round "2.8"]
[White "Jalaluldeen, Kareen Kamal J."]
[Black "Radeva, Viktoria"]
[Result "1/2-1/2"]
[ECO "D30"]
[WhiteElo "1784"]
[BlackElo "2338"]
[Annotator "ChessBase"]
[PlyCount "69"]
[EventDate "2020.01.04"]
[EventType "swiss"]
[EventCountry "UAE"]
[SourceTitle "playchess.com"]
[Source "ChessBase"]
[SourceQuality "1"]
[TimeControl "5400+30"]

1. d4 {[%emt 0:00:00]} d5 {[%emt 0:00:00]} 2. c4 {[%emt 0:00:00]} e6 {[%emt 0:00:00]} 3. cxd5 {[%emt 0:00:01]} exd5 {[%emt 0:00:00]} 4. Nc3 {[%emt 0:00:20]} c6 {[%emt 0:00:18]} 5. Qc2 {[%emt 0:00:16]} Bd6 {[%emt 0:09:45]} 6. Nf3 {[%emt 0:02:51]} Bg4 {[%emt 0:11:17]} 7. Bg5 {[%emt 0:14:33]} Ne7 {[%emt 0:10:25]} 8. e3 {[%emt 0:04:44]} Qc7 {[%emt 0:05:14]} 9. Bd3 {[%emt 0:06:18]} Ng6 {[%emt 0:08:15]} 10. Nh4 {[%emt 0:17:44]} Nxh4 {[%emt 0:12:58]} 11. Bxh4 {[%emt 0:00:09]} h6 {[%emt 0:01:57]} 12. Bg3 {[%emt 0:02:00]} Bxg3 {[%emt 0:02:27]} 13. hxg3 {[%emt 0:01:01]} Qd6 {[%emt 0:01:25]} 14. Rb1 {[%emt 0:02:44]} Nd7 {[%emt 0:02:12]} 15. b4 {[%emt 0:01:43]} O-O {[%emt 0:04:01]} 16. O-O {[%emt 0:04:55]} Rac8 {[%emt 0:04:59]} 17. Qb3 {[%emt 0:00:54]} Nf6 {[%emt 0:02:43]} 18. b5 {[%emt 0:15:39]} b6 {[%emt 0:09:01]} 19. bxc6 {[%emt 0:03:23]} Rxc6 {[%emt 0:01:46]} 20. Rbc1 {[%emt 0:02:32]} Rfc8 {[%emt 0:05:31]} 21. Bb5 {[%emt 0:02:06]} R6c7 {[%emt 0:05:02]} 22. Ba6 {[%emt 0:00:09]} Qd7 {[%emt 0:00:24]} 23. Bxc8 {[%emt 0:00:31]} Qxc8 {[%emt 0:00:04]} 24. Qb2 {[%emt 0:01:47]} Rc4 {[%emt 0:00:42]} 25. Nb5 {[%emt 0:02:38]} Qd7 {[%emt 0:00:11]} 26. Na3 {[%emt 0:02:15]} Ra4 {[%emt 0:00:39]} 27. Nb5 {[%emt 0:02:58]} Rc4 {[%emt 0:00:50]} 28. Rxc4 {[%emt 0:01:08]} dxc4 {[%emt 0:00:01]} 29. Rc1 {[%emt 0:00:38]} Be6 {[%emt 0:01:30]} 30. Na3 {[%emt 0:01:19]} Qa4 {[%emt 0:00:05]} 31. Nb5 {[%emt 0:01:36]} Ne4 {[%emt 0:01:06]} 32. Nc3 {[%emt 0:00:40]} Nxc3 {[%emt 0:00:04]} 33. Qxc3 {[%emt 0:03:39]} Qxa2 {[%emt 0:00:03]} 34. e4 {[%emt 0:00:09]} b5 {[%emt 0:00:51]} 35. d5 {[%emt 0:00:17]} 1/2-1/2

[Event "10th Sharjah Cup Women 2020"]
[Site "Sharjah"]
[Date "2020.01.05"]
[Round "2.9"]
[White "Al Kalbani, Wadima"]
[Black "Dordzhieva, Dinara"]
[Result "0-1"]
[ECO "B00"]
[WhiteElo "1667"]
[BlackElo "2326"]
[Annotator "ChessBase"]
[PlyCount "100"]
[EventDate "2020.01.04"]
[EventType "swiss"]
[EventCountry "UAE"]
[SourceTitle "playchess.com"]
[Source "ChessBase"]
[SourceQuality "1"]
[TimeControl "5400+30"]

1. e4 {[%emt 0:00:00]} d6 {[%emt 0:02:09]} 2. d4 {[%emt 0:00:00]} g6 {[%emt 0:00:25]} 3. Nf3 {[%emt 0:00:44]} Bg7 {[%emt 0:00:05]} 4. h3 {[%emt 0:00:15]} a6 {[%emt 0:00:07]} 5. Bf4 {[%emt 0:00:08]} b5 {[%emt 0:00:41]} 6. c3 {[%emt 0:01:59]} Bb7 {[%emt 0:00:10]} 7. Bd3 {[%emt 0:01:21]} Nd7 {[%emt 0:00:06]} 8. a4 {[%emt 0:10:29]} Ngf6 {[%emt 0:04:21]} 9. Nbd2 {[%emt 0:00:12]} O-O {[%emt 0:01:36]} 10. O-O {[%emt 0:00:29]} e5 {[%emt 0:03:16]} 11. Bg5 {[%emt 0:20:17]} c6 {[%emt 0:01:31]} 12. Re1 {[%emt 0:06:16]} Qc7 {[%emt 0:02:34]} 13. dxe5 {[%emt 0:17:19]} dxe5 {[%emt 0:00:58]} 14. b4 {[%emt 0:00:06]} Nb6 {[%emt 0:05:57]} 15. a5 {[%emt 0:15:13]} Na4 {[%emt 0:00:35]} 16. Ra3 {[%emt 0:00:22]} Nb2 {[%emt 0:03:07]} 17. Qc2 {[%emt 0:00:11]} Nxd3 {[%emt 0:00:03]} 18. Qxd3 {[%emt 0:00:14]} c5 {[%emt 0:00:03]} 19. Be3 {[%emt 0:01:03]} c4 {[%emt 0:00:28]} 20. Qc2 {[%emt 0:00:57]} Nd7 {[%emt 0:00:59]} 21. Raa1 {[%emt 0:00:31]} f5 {[%emt 0:00:58]} 22. exf5 {[%emt 0:01:12]} gxf5 {[%emt 0:00:12]} 23. Rad1 {[%emt 0:07:08]} Rae8 {[%emt 0:01:46]} 24. Bg5 {[%emt 0:02:54]} e4 {[%emt 0:01:55]} 25. Nd4 {[%emt 0:01:18]} Ne5 {[%emt 0:00:56]} 26. Bf4 {[%emt 0:02:55]} Nf3+ {[%emt 0:01:31]} 27. N2xf3 {[%emt 0:00:13]} Qxf4 {[%emt 0:00:05]} 28. Nh2 {[%emt 0:00:19]} Qg5 {[%emt 0:00:59]} 29. Qe2 {[%emt 0:03:29]} h5 {[%emt 0:01:57]} 30. Qf1 {[%emt 0:03:01]} f4 {[%emt 0:04:38]} 31. Kh1 {[%emt 0:00:56]} Re7 {[%emt 0:03:22]} 32. Kg1 {[%emt 0:02:59]} Kh8 {[%emt 0:00:25]} 33. Kh1 {[%emt 0:01:09]} Be5 {[%emt 0:00:16]} 34. f3 {[%emt 0:00:46]} e3 {[%emt 0:00:09]} 35. Ne2 {[%emt 0:00:32]} Rg8 {[%emt 0:00:50]} 36. Nd4 {[%emt 0:00:07]} Qf6 {[%emt 0:00:11]} 37. Re2 {[%emt 0:00:29]} Reg7 {[%emt 0:00:22]} 38. Qe1 {[%emt 0:00:54]} Bc8 {[%emt 0:00:55]} 39. Qf1 {[%emt 0:00:32]} Bd7 {[%emt 0:00:20]} 40. Qe1 {[%emt 0:00:26]} Be8 {[%emt 0:00:04]} 41. Nf1 {[%emt 0:00:33]} Bg6 {[%emt 0:01:32]} 42. g3 {[%emt 0:00:23]} fxg3 {[%emt 0:00:45]} 43. Kg2 {[%emt 0:00:19]} Bxd4 {[%emt 0:05:59]} 44. Rxd4 {[%emt 0:00:06]} Bf5 {[%emt 0:00:02]} 45. Rxe3 {[%emt 0:01:12]} Bxh3+ {[%emt 0:00:49]} 46. Kg1 {[%emt 0:00:29]} Bf5 {[%emt 0:02:02]} 47. Kg2 {[%emt 0:00:31]} h4 {[%emt 0:00:29]} 48. Qd1 {[%emt 0:00:30]} h3+ {[%emt 0:00:21]} 49. Kg1 {[%emt 0:00:07]} h2+ {[%emt 0:00:07]} 50. Kg2 {[%emt 0:00:20]} Bh3+ {[%emt 0:00:04]} 0-1

[Event "10th Sharjah Cup Women 2020"]
[Site "Sharjah"]
[Date "2020.01.05"]
[Round "2.11"]
[White "Al Ghafri, Wafia"]
[Black "Li, Xueyi"]
[Result "0-1"]
[ECO "A50"]
[WhiteElo "1609"]
[BlackElo "2307"]
[Annotator "ChessBase"]
[PlyCount "78"]
[EventDate "2020.01.04"]
[EventType "swiss"]
[EventCountry "UAE"]
[SourceTitle "playchess.com"]
[Source "ChessBase"]
[SourceQuality "1"]
[TimeControl "5400+30"]

1. d4 {[%emt 0:00:00]} Nf6 {[%emt 0:00:00]} 2. c4 {[%emt 0:00:00]} b6 {[%emt 0:00:17]} 3. Nc3 {[%emt 0:01:01]} Bb7 {[%emt 0:00:30]} 4. e3 {[%emt 0:01:59]} e6 {[%emt 0:01:44]} 5. Nf3 {[%emt 0:02:27]} g6 {[%emt 0:01:26]} 6. Be2 {[%emt 0:03:12]} Bg7 {[%emt 0:01:32]} 7. O-O {[%emt 0:01:24]} O-O {[%emt 0:00:08]} 8. Qc2 {[%emt 0:07:54]} d5 {[%emt 0:02:26]} 9. cxd5 {[%emt 0:09:00]} exd5 {[%emt 0:00:20]} 10. b3 {[%emt 0:05:17]} c6 {[%emt 0:01:39]} 11. Ba3 {[%emt 0:05:03]} Re8 {[%emt 0:00:09]} 12. h3 {[%emt 0:00:53]} Nbd7 {[%emt 0:04:04]} 13. b4 {[%emt 0:07:54]} b5 {[%emt 0:09:40]} 14. Bb2 {[%emt 0:07:45]} Nb6 {[%emt 0:02:53]} 15. a4 {[%emt 0:05:02]} a6 {[%emt 0:02:36]} 16. axb5 {[%emt 0:12:20]} axb5 {[%emt 0:04:06]} 17. Rxa8 {[%emt 0:06:12]} Qxa8 {[%emt 0:00:17]} 18. Ra1 {[%emt 0:00:34]} Qb8 {[%emt 0:00:07]} 19. Ne5 {[%emt 0:04:55]} Nfd7 {[%emt 0:01:31]} 20. Nxd7 {[%emt 0:02:30]} Nxd7 {[%emt 0:00:15]} 21. Bf3 {[%emt 0:02:24]} Nb6 {[%emt 0:04:10]} 22. Nb1 {[%emt 0:04:00]} Nc4 {[%emt 0:05:24]} 23. Nd2 {[%emt 0:01:00]} Bc8 {[%emt 0:01:23]} 24. Nxc4 {[%emt 0:03:50]} bxc4 {[%emt 0:00:08]} 25. Bc3 {[%emt 0:00:44]} Bd7 {[%emt 0:06:42]} 26. Qa4 {[%emt 0:01:14]} Qd6 {[%emt 0:03:19]} 27. Qa7 {[%emt 0:00:49]} h5 {[%emt 0:05:27]} 28. Qc5 {[%emt 0:00:29]} Qxc5 {[%emt 0:02:41]} 29. bxc5 {[%emt 0:00:01]} Rb8 {[%emt 0:00:05]} 30. Ra7 {[%emt 0:01:12]} Bf5 {[%emt 0:00:49]} 31. Rc7 {[%emt 0:01:00]} Rb3 {[%emt 0:00:19]} 32. Ba5 {[%emt 0:02:12]} c3 {[%emt 0:01:07]} 33. Bxc3 {[%emt 0:00:03]} Rxc3 {[%emt 0:00:20]} 34. Rxc6 {[%emt 0:00:09]} Be4 {[%emt 0:03:41]} 35. Bxe4 {[%emt 0:00:29]} dxe4 {[%emt 0:00:06]} 36. d5 {[%emt 0:00:12]} Bf8 {[%emt 0:04:18]} 37. d6 {[%emt 0:00:23]} Rc1+ {[%emt 0:00:05]} 38. Kh2 {[%emt 0:00:12]} Rxc5 {[%emt 0:00:03]} 39. Rb6 {[%emt 0:02:35]} Rd5 {[%emt 0:00:11]} 0-1

[Event "10th Sharjah Cup Women 2020"]
[Site "Sharjah"]
[Date "2020.01.05"]
[Round "2.12"]
[White "Abdulla, Khayala"]
[Black "Al-Fayyadh, Zainab Asif Abdulah"]
[Result "1-0"]
[ECO "C44"]
[WhiteElo "2275"]
[BlackElo "1646"]
[Annotator "ChessBase"]
[PlyCount "71"]
[EventDate "2020.01.04"]
[EventType "swiss"]
[EventCountry "UAE"]
[SourceTitle "playchess.com"]
[Source "ChessBase"]
[SourceQuality "1"]
[TimeControl "5400+30"]

1. e4 {[%emt 0:00:00]} e5 {[%emt 0:00:00]} 2. Nf3 {[%emt 0:00:00]} Nc6 {[%emt 0:00:00]} 3. c3 {[%emt 0:00:00]} Nf6 {[%emt 0:00:00]} 4. d4 {[%emt 0:00:12]} d6 {[%emt 0:00:09]} 5. Bd3 {[%emt 0:00:22]} Bg4 {[%emt 0:00:52]} 6. d5 {[%emt 0:00:06]} Ne7 {[%emt 0:00:14]} 7. h3 {[%emt 0:01:45]} Bh5 {[%emt 0:01:00]} 8. Bg5 {[%emt 0:05:50]} Nc8 {[%emt 0:04:09]} 9. Bb5+ {[%emt 0:09:37]} Ke7 {[%emt 0:02:07]} 10. Nbd2 {[%emt 0:00:29]} a6 {[%emt 0:02:35]} 11. Ba4 {[%emt 0:01:24]} b5 {[%emt 0:03:08]} 12. Bc2 {[%emt 0:01:04]} Nb6 {[%emt 0:01:41]} 13. Bxf6+ {[%emt 0:04:18]} gxf6 {[%emt 0:00:25]} 14. Nf1 {[%emt 0:00:25]} Rg8 {[%emt 0:12:04]} 15. Ng3 {[%emt 0:00:28]} Bg6 {[%emt 0:00:17]} 16. Nh4 {[%emt 0:01:52]} Kd7 {[%emt 0:02:33]} 17. Qg4+ {[%emt 0:02:12]} Ke8 {[%emt 0:01:12]} 18. O-O {[%emt 0:02:48]} Qd7 {[%emt 0:07:11]} 19. Nhf5 {[%emt 0:01:07]} Nc8 {[%emt 0:04:59]} 20. Nh5 {[%emt 0:03:23]} Be7 {[%emt 0:03:56]} 21. a4 {[%emt 0:01:33]} Kf8 {[%emt 0:03:26]} 22. Qh4 {[%emt 0:00:55]} Bxf5 {[%emt 0:02:37]} 23. exf5 {[%emt 0:00:06]} bxa4 {[%emt 0:00:53]} 24. Nxf6 {[%emt 0:05:08]} Bxf6 {[%emt 0:03:08]} 25. Qxf6 {[%emt 0:00:05]} Nb6 {[%emt 0:10:33]} 26. Qh6+ {[%emt 0:01:39]} Ke8 {[%emt 0:01:11]} 27. Qxh7 {[%emt 0:00:22]} Ke7 {[%emt 0:00:57]} 28. f6+ {[%emt 0:02:21]} Kxf6 {[%emt 0:04:29]} 29. f4 {[%emt 0:00:10]} e4 {[%emt 0:03:11]} 30. Qh6+ {[%emt 0:04:50]} Rg6 {[%emt 0:02:35]} 31. Qh4+ {[%emt 0:00:28]} Kg7 {[%emt 0:00:38]} 32. f5 {[%emt 0:01:14]} Rh8 {[%emt 0:03:16]} 33. Qxe4 {[%emt 0:00:55]} Rg5 {[%emt 0:01:02]} 34. Rf3 {[%emt 0:05:45]} Qb5 {[%emt 0:01:14]} 35. h4 {[%emt 0:16:29]} Rgh5 {[%emt 0:02:46]} 36. f6+ {[%emt 0:00:19]} 1-0

[Event "10th Sharjah Cup Women 2020"]
[Site "Sharjah"]
[Date "2020.01.05"]
[Round "2.13"]
[White "Mariam, Essa"]
[Black "Kubicka, Anna"]
[Result "0-1"]
[ECO "A08"]
[WhiteElo "1560"]
[BlackElo "2258"]
[Annotator "NA"]
[PlyCount "34"]
[EventDate "2020.01.04"]
[EventType "swiss"]
[EventCountry "UAE"]
[SourceTitle "playchess.com"]
[Source "ChessBase"]
[SourceQuality "1"]
[TimeControl "5400+30"]

1. Nf3 {[%emt 0:00:00]} d5 {[%emt 0:00:00]} 2. g3 {[%emt 0:00:00]} c5 {[%emt 0:00:00]} 3. Bg2 {[%emt 0:00:18]} Nc6 {[%emt 0:00:02]} 4. O-O {[%emt 0:02:09]} Nf6 {[%emt 0:00:05]} 5. c4 {[%emt 0:00:07]} d4 {[%emt 0:00:11]} 6. e3 {[%emt 0:02:43]} e5 {[%emt 0:01:04]} 7. exd4 {[%emt 0:01:11]} cxd4 {[%emt 0:05:05]} 8. Nxe5 {[%emt 0:10:32]} Nxe5 {[%emt 0:00:40]} 9. Re1 {[%emt 0:00:03]} Bd6 {[%emt 0:08:28]} 10. f4 {[%emt 0:04:25]} d3 {[%emt 0:03:30]} 11. Bf3 {[%emt 0:10:21]} h5 {[%emt 0:12:02]} 12. fxe5 {[%emt 0:03:32]} Bc5+ {[%emt 0:00:04]} 13. Kg2 {[%emt 0:00:08]} Ng4 {[%emt 0:00:46]} 14. e6 {[%emt 0:07:21]} Bxe6 {[%emt 0:01:52]} 15. Qa4+ {[%emt 0:02:50]} Kf8 {[%emt 0:00:25]} 16. Nc3 {[%emt 0:02:18]} h4 {[%emt 0:01:13]} 17. b4 {[%emt 0:10:28]} Qd4 {[%emt 0:02:12]} 0-1

[Event "10th Sharjah Cup Women 2020"]
[Site "Sharjah"]
[Date "2020.01.05"]
[Round "2.14"]
[White "Nguyen, Thi Mai Hung"]
[Black "Yasmin, Ali"]
[Result "1-0"]
[ECO "D02"]
[WhiteElo "2254"]
[BlackElo "1527"]
[Annotator "ChessBase"]
[PlyCount "77"]
[EventDate "2020.01.04"]
[EventType "swiss"]
[EventCountry "UAE"]
[SourceTitle "playchess.com"]
[Source "ChessBase"]
[SourceQuality "1"]
[TimeControl "5400+30"]

1. d4 {[%emt 0:00:00]} d5 {[%emt 0:01:47]} 2. Nf3 {[%emt 0:00:00]} Nf6 {[%emt 0:00:06]} 3. g3 {[%emt 0:01:12]} e6 {[%emt 0:00:38]} 4. Bg2 {[%emt 0:00:07]} c5 {[%emt 0:00:07]} 5. O-O {[%emt 0:00:32]} Nc6 {[%emt 0:00:06]} 6. c4 {[%emt 0:01:18]} cxd4 {[%emt 0:01:53]} 7. Nxd4 {[%emt 0:01:12]} Bc5 {[%emt 0:00:13]} 8. Nb3 {[%emt 0:03:31]} Be7 {[%emt 0:01:45]} 9. cxd5 {[%emt 0:05:50]} Nxd5 {[%emt 0:00:13]} 10. Bd2 {[%emt 0:02:16]} O-O {[%emt 0:01:51]} 11. Nc3 {[%emt 0:00:18]} Nb6 {[%emt 0:02:33]} 12. Ne4 {[%emt 0:08:10]} e5 {[%emt 0:08:21]} 13. Rc1 {[%emt 0:02:25]} Nd5 {[%emt 0:08:02]} 14. Nec5 {[%emt 0:06:05]} b6 {[%emt 0:03:03]} 15. Be1 {[%emt 0:15:46]} bxc5 {[%emt 0:02:46]} 16. Qxd5 {[%emt 0:02:03]} Bb7 {[%emt 0:01:59]} 17. Qxd8 {[%emt 0:16:07]} Rfxd8 {[%emt 0:00:06]} 18. e3 {[%emt 0:04:32]} Rac8 {[%emt 0:00:45]} 19. Nxc5 {[%emt 0:01:11]} Ba8 {[%emt 0:00:09]} 20. Nb3 {[%emt 0:02:13]} f5 {[%emt 0:00:39]} 21. Bc3 {[%emt 0:00:46]} Bf6 {[%emt 0:00:41]} 22. Rfd1 {[%emt 0:00:53]} Kf7 {[%emt 0:00:35]} 23. Rxd8 {[%emt 0:08:15]} Rxd8 {[%emt 0:00:07]} 24. Na5 {[%emt 0:00:42]} Ne7 {[%emt 0:02:30]} 25. Bxa8 {[%emt 0:04:20]} Rxa8 {[%emt 0:00:08]} 26. Nc4 {[%emt 0:01:40]} e4 {[%emt 0:00:25]} 27. Bxf6 {[%emt 0:01:51]} Kxf6 {[%emt 0:00:08]} 28. Rd1 {[%emt 0:00:21]} Rc8 {[%emt 0:00:46]} 29. b3 {[%emt 0:00:05]} g6 {[%emt 0:00:31]} 30. Rd6+ {[%emt 0:01:22]} Kg5 {[%emt 0:00:06]} 31. Rd7 {[%emt 0:01:28]} Nc6 {[%emt 0:00:06]} 32. Nd6 {[%emt 0:01:00]} Rb8 {[%emt 0:01:04]} 33. Rxh7 {[%emt 0:00:25]} Nb4 {[%emt 0:00:16]} 34. Rxa7 {[%emt 0:00:15]} Nd3 {[%emt 0:00:57]} 35. Rb7 {[%emt 0:01:06]} Ra8 {[%emt 0:01:33]} 36. a4 {[%emt 0:00:08]} Ra6 {[%emt 0:00:20]} 37. Nc4 {[%emt 0:00:32]} Rc6 {[%emt 0:00:10]} 38. a5 {[%emt 0:01:30]} Rc8 {[%emt 0:00:07]} 39. Rb6 {[%emt 0:01:46]} 1-0

[Event "10th Sharjah Cup Women 2020"]
[Site "Sharjah"]
[Date "2020.01.05"]
[Round "2.15"]
[White "Al Ali, Aisha Saif"]
[Black "Smirnova, Ekaterina"]
[Result "0-1"]
[ECO "C00"]
[WhiteElo "1499"]
[BlackElo "2249"]
[Annotator "ChessBase"]
[PlyCount "80"]
[EventDate "2020.01.04"]
[EventType "swiss"]
[EventCountry "UAE"]
[SourceTitle "playchess.com"]
[Source "ChessBase"]
[SourceQuality "1"]
[TimeControl "5400+30"]

1. e4 {[%emt 0:01:26]} e6 {[%emt 0:00:00]} 2. d4 {[%emt 0:00:17]} d5 {[%emt 0:00:00]} 3. Bd3 {[%emt 0:01:12]} c5 {[%emt 0:00:00]} 4. exd5 {[%emt 0:01:02]} exd5 {[%emt 0:00:00]} 5. Nf3 {[%emt 0:01:27]} c4 {[%emt 0:01:06]} 6. Be2 {[%emt 0:00:11]} Nf6 {[%emt 0:00:06]} 7. b3 {[%emt 0:00:46]} cxb3 {[%emt 0:01:00]} 8. axb3 {[%emt 0:00:26]} Nc6 {[%emt 0:00:26]} 9. O-O {[%emt 0:00:53]} Bd6 {[%emt 0:01:05]} 10. Re1 {[%emt 0:02:22]} O-O {[%emt 0:00:27]} 11. Bg5 {[%emt 0:04:23]} h6 {[%emt 0:02:00]} 12. Bh4 {[%emt 0:03:24]} g5 {[%emt 0:02:57]} 13. Bg3 {[%emt 0:02:17]} Bxg3 {[%emt 0:00:16]} 14. hxg3 {[%emt 0:00:09]} Ne4 {[%emt 0:00:18]} 15. c4 g4 {[%emt 0:09:13]} 16. Nfd2 {[%emt 0:09:51]} Nxf2 {[%emt 0:01:57]} 17. Kxf2 {[%emt 0:11:02]} Qf6+ {[%emt 0:00:01]} 18. Nf3 {[%emt 0:00:01]} gxf3 {[%emt 0:00:29]} 19. Bxf3 {[%emt 0:00:08]} Nxd4 {[%emt 0:00:57]} 20. Nd2 {[%emt 0:02:44]} Nxf3 {[%emt 0:02:08]} 21. gxf3 {[%emt 0:01:32]} dxc4 {[%emt 0:01:46]} 22. Nxc4 {[%emt 0:02:54]} Be6 {[%emt 0:00:54]} 23. Ne5 {[%emt 0:05:50]} Rfd8 {[%emt 0:01:26]} 24. Qe2 {[%emt 0:00:11]} Bxb3 {[%emt 0:02:16]} 25. Qe3 {[%emt 0:01:56]} Qb6 {[%emt 0:02:21]} 26. Qxb6 {[%emt 0:03:11]} axb6 {[%emt 0:00:01]} 27. Rxa8 {[%emt 0:02:34]} Rxa8 {[%emt 0:00:01]} 28. Nd7 {[%emt 0:00:11]} b5 {[%emt 0:02:09]} 29. Rb1 {[%emt 0:04:20]} Ra2+ {[%emt 0:00:19]} 30. Kg1 {[%emt 0:00:26]} Bc4 {[%emt 0:00:58]} 31. Nc5 {[%emt 0:02:10]} Kf8 {[%emt 0:04:55]} 32. f4 {[%emt 0:01:24]} Ke7 {[%emt 0:01:01]} 33. Nxb7 {[%emt 0:00:20]} Kd7 {[%emt 0:00:45]} 34. Nc5+ {[%emt 0:00:24]} Kc6 {[%emt 0:00:12]} 35. Ne4 {[%emt 0:00:29]} f5 {[%emt 0:00:40]} 36. Nf6 {[%emt 0:02:27]} Kc5 {[%emt 0:01:21]} 37. Nd7+ {[%emt 0:02:22]} Kd4 {[%emt 0:00:24]} 38. Ne5 {[%emt 0:00:39]} h5 {[%emt 0:02:58]} 39. Nf3+ {[%emt 0:01:24]} Kc3 {[%emt 0:00:36]} 40. Kh1 {[%emt 0:03:15]} Bd5 {[%emt 0:01:00]} 0-1

[Event "10th Sharjah Cup Women 2020"]
[Site "Sharjah"]
[Date "2020.01.05"]
[Round "2.16"]
[White "Bykova, Anastasia"]
[Black "Alazmi, Aeshah"]
[Result "1-0"]
[ECO "D06"]
[WhiteElo "2247"]
[BlackElo "1490"]
[Annotator "ChessBase"]
[PlyCount "107"]
[EventDate "2020.01.04"]
[EventType "swiss"]
[EventCountry "UAE"]
[SourceTitle "playchess.com"]
[Source "ChessBase"]
[SourceQuality "1"]
[TimeControl "5400+30"]

1. d4 {[%emt 0:00:00]} d5 {[%emt 0:00:00]} 2. c4 {[%emt 0:00:00]} Nf6 {[%emt 0:00:26]} 3. Nf3 {[%emt 0:00:00]} Nc6 {[%emt 0:00:22]} 4. cxd5 {[%emt 0:05:35]} Qxd5 {[%emt 0:04:12]} 5. Nc3 {[%emt 0:00:11]} Qa5 {[%emt 0:01:05]} 6. Bd2 {[%emt 0:09:10]} e6 {[%emt 0:00:54]} 7. e3 {[%emt 0:00:23]} Bd6 {[%emt 0:00:42]} 8. Ne4 {[%emt 0:01:05]} Bb4 {[%emt 0:01:45]} 9. Nxf6+ {[%emt 0:00:09]} gxf6 {[%emt 0:00:18]} 10. a3 {[%emt 0:01:32]} Bxd2+ {[%emt 0:08:52]} 11. Nxd2 {[%emt 0:00:11]} e5 {[%emt 0:00:54]} 12. Bc4 {[%emt 0:12:18]} Be6 {[%emt 0:05:16]} 13. b4 {[%emt 0:01:02]} Qb6 {[%emt 0:00:51]} 14. d5 {[%emt 0:00:20]} Bd7 {[%emt 0:04:15]} 15. dxc6 {[%emt 0:00:20]} Be6 {[%emt 0:02:39]} 16. Bxe6 {[%emt 0:00:17]} fxe6 {[%emt 0:00:12]} 17. cxb7 {[%emt 0:00:47]} Qxb7 {[%emt 0:00:27]} 18. Qf3 {[%emt 0:00:21]} O-O-O {[%emt 0:00:08]} 19. Qxb7+ {[%emt 0:00:08]} Kxb7 {[%emt 0:00:20]} 20. Ke2 {[%emt 0:00:06]} f5 {[%emt 0:01:56]} 21. Nb3 {[%emt 0:00:12]} Kb6 {[%emt 0:02:28]} 22. Rhd1 {[%emt 0:00:09]} Rd6 {[%emt 0:01:38]} 23. Nc5 {[%emt 0:00:19]} Kc6 {[%emt 0:02:05]} 24. Rac1 {[%emt 0:00:39]} Kb5 {[%emt 0:05:32]} 25. Rxd6 {[%emt 0:00:18]} cxd6 {[%emt 0:00:06]} 26. Nxe6 {[%emt 0:00:08]} Ka4 {[%emt 0:07:29]} 27. Rc3 {[%emt 0:00:10]} d5 {[%emt 0:01:57]} 28. Nc5+ {[%emt 0:00:26]} Kb5 {[%emt 0:00:18]} 29. Nd7 {[%emt 0:00:07]} Ka4 {[%emt 0:07:00]} 30. Nxe5 {[%emt 0:00:31]} Rd8 {[%emt 0:00:15]} 31. Nf3 {[%emt 0:00:08]} a5 {[%emt 0:00:23]} 32. bxa5 {[%emt 0:00:09]} Kxa5 {[%emt 0:00:15]} 33. Nd4 {[%emt 0:00:05]} Rd6 {[%emt 0:05:16]} 34. Nxf5 {[%emt 0:00:12]} Rb6 {[%emt 0:02:08]} 35. Rc5+ {[%emt 0:00:14]} Ka4 {[%emt 0:00:22]} 36. Rxd5 {[%emt 0:00:07]} Kxa3 {[%emt 0:01:15]} 37. g4 {[%emt 0:00:13]} Rb4 {[%emt 0:03:57]} 38. Rd3+ {[%emt 0:00:08]} Ka4 {[%emt 0:00:07]} 39. Rd4 {[%emt 0:00:03]} Kb5 {[%emt 0:00:53]} 40. Rxb4+ {[%emt 0:00:05]} Kxb4 {[%emt 0:00:03]} 41. e4 {[%emt 0:00:04]} Kc4 {[%emt 0:00:18]} 42. e5 {[%emt 0:00:06]} Kd5 {[%emt 0:00:14]} 43. f4 {[%emt 0:00:04]} Ke4 {[%emt 0:00:06]} 44. e6 {[%emt 0:00:04]} Kxf4 {[%emt 0:00:25]} 45. e7 {[%emt 0:00:04]} Kxg4 {[%emt 0:01:13]} 46. e8=Q {[%emt 0:00:10]} Kxf5 {[%emt 0:00:18]} 47. Kf3 {[%emt 0:00:12]} Kg5 {[%emt 0:00:13]} 48. Qe5+ {[%emt 0:00:06]} Kg6 {[%emt 0:00:47]} 49. Kg4 {[%emt 0:00:05]} h6 {[%emt 0:01:46]} 50. Qe6+ {[%emt 0:00:04]} Kh7 {[%emt 0:00:21]} 51. Kh5 {[%emt 0:00:09]} Kg7 {[%emt 0:00:47]} 52. Qe7+ {[%emt 0:00:07]} Kh8 {[%emt 0:02:21]} 53. Kg6 {[%emt 0:00:05]} Kg8 {[%emt 0:00:58]} 54. Qg7# {[%emt 0:00:04]} 1-0